fUST/lending_fUST_20240317
["ID","MTS","AMOUNT","RATE_DAILY","PERIOD"]
[319255135,1710627048127,-340.67513156,0.00018627,2]
[319255136,1710627048137,-213.10742102,0.00018627,2]
[319255137,1710627048146,-313.72821769,0.00018627,2]
[319255714,1710628232260,-179.18753222,0.00018362,2]
[319255716,1710628232270,-1883.30131368,0.00018363,2]
[319255718,1710628232279,-442.19324132,0.00018407,2]
[319255720,1710628232288,-442.1932413,0.00018437,2]
[319255722,1710628232297,-442.1932413,0.00018467,2]
[319255724,1710628232307,-442.1932413,0.00018497,2]
[319255726,1710628232316,-500.0,0.00018506,2]
[319255728,1710628232325,-500.0,0.00018506,2]
[319255730,1710628232335,-500.0,0.00018506,2]
[319255732,1710628232344,-500.0,0.00018506,2]
[319255734,1710628232353,-501.08597932,0.00018506,2]
[319255736,1710628232362,-500.0,0.00018506,2]
[319255738,1710628232370,-533.83790093,0.00018506,2]
[319255740,1710628232380,-502.26125973,0.00018506,2]
[319255742,1710628232390,-3532.49,0.00018506,2]
[319255744,1710628232399,-3532.49,0.00018506,2]
[319255746,1710628232408,-458.63253774,0.00018506,2]
[319256017,1710628240515,-404.89614019,0.00018361,2]
[319256019,1710628240526,-3073.85746226,0.00018506,2]
[319256021,1710628240535,-3160.21382092,0.00018506,2]
[319256325,1710628243549,-372.27617908,0.00018506,2]
[319256327,1710628243560,-500.0,0.00018506,2]
[319256329,1710628243569,-500.0,0.00018506,2]
[319256331,1710628243581,-457.39,0.00018506,2]
[319256333,1710628243590,-500.0,0.00018507,2]
[319256335,1710628243599,-500.0,0.00018507,2]
[319256337,1710628243608,-457.39,0.00018507,2]
[319256339,1710628243618,-3532.49,0.00018507,2]
[319256341,1710628243627,-3532.49,0.00018507,2]
[319256343,1710628243636,-3532.49,0.00018507,2]
[319256345,1710628243645,-3532.49,0.00018507,2]
[319256347,1710628243654,-3532.49,0.00018507,2]
[319256349,1710628243663,-3532.49,0.00018507,2]
[319256351,1710628243672,-3532.49,0.00018507,2]
[319256353,1710628243681,-3532.49,0.00018507,2]
[319256355,1710628243689,-3532.49,0.00018507,2]
[319256357,1710628243698,-3532.49,0.00018507,2]
[319256359,1710628243707,-3532.49,0.00018507,2]
[319256361,1710628243716,-3532.49,0.00018507,2]
[319256363,1710628243725,-3532.49,0.00018507,2]
[319256365,1710628243734,-3532.49,0.00018507,2]
[319256366,1710628243743,-227.97673931,0.00018507,2]
[319258121,1710628429259,794.47838734,0.00017418,2]
[319258122,1710628456305,578.04252701,0.00017494,3]
[319258132,1710628545095,728.7077669,0.00017482,2]
[319258349,1710629438578,-2117.10922945,0.0001756,2]
[319258350,1710629438588,-125.95981615,0.00017561,2]
[319258831,1710629443584,-409.79586459,0.00017561,2]
[319258841,1710629443692,-1347.54563294,0.00017561,2]
[319258843,1710629443701,-325.72346705,0.00017568,2]
[319258845,1710629443711,-336.97833267,0.00017696,2]
[319258847,1710629443720,-221.09662065,0.00018428,2]
[319258849,1710629443729,-275.0,0.00018506,2]
[319258851,1710629443738,-2060.40758649,0.00018507,2]
[319265035,1710630632782,-2556.36,0.0001785,5]
[319265037,1710630632792,-623.135869,0.0001815,2]
[319265039,1710630632803,-221.09662065,0.00018428,2]
[319265041,1710630632814,-3946.20554076,0.0001843,2]
[319265043,1710630632823,-200.0,0.000185,2]
[319265045,1710630632833,-1244.1056742,0.00018507,2]
[319265047,1710630632843,-3532.49,0.00018507,2]
[319265049,1710630632852,-2034.17040748,0.00018507,2]
[319266499,1710630649077,-1498.31959252,0.00018507,2]
[319266501,1710630649086,-3532.49,0.00018507,2]
[319266503,1710630649095,-3532.49,0.00018507,2]
[319266504,1710630649105,-3532.65388592,0.00018507,2]
[319266506,1710630649115,-10470.0,0.00018507,2]
[319266508,1710630649126,-13737.39731713,0.00018528,2]
[319266510,1710630649136,-1000.0,0.00018528,2]
[319266512,1710630649146,-582.0,0.000186,2]
[319266514,1710630649155,-221.3537,0.000186,2]
[319266516,1710630649164,-500.0,0.00018626,2]
[319266518,1710630649174,-500.0,0.00018626,2]
[319266520,1710630649183,-500.0,0.00018626,2]
[319266522,1710630649193,-153.78,0.00018626,2]
[319266524,1710630649202,-500.0,0.00018626,2]
[319266526,1710630649212,-500.0,0.00018626,2]
[319266528,1710630649222,-500.0,0.00018626,2]
[319266530,1710630649231,-500.0,0.00018626,2]
[319266533,1710630649244,-500.0,0.00018626,2]
[319266535,1710630649252,-500.0,0.00018626,2]
[319266537,1710630649263,-237.35616546,0.00018626,2]
[319266539,1710630649272,-500.0,0.00018626,2]
[319266541,1710630649286,-500.0,0.00018626,2]
[319266543,1710630649295,-500.0,0.00018626,2]
[319266545,1710630649304,-500.0,0.00018626,2]
[319266547,1710630649313,-500.0,0.00018626,2]
[319266549,1710630649322,-386.88,0.00018626,2]
[319266551,1710630649331,-1667.75,0.00018626,2]
[319266553,1710630649340,-1667.75,0.00018626,2]
[319266554,1710630649350,-1667.75,0.00018626,2]
[319266556,1710630649359,-1667.75,0.00018626,2]
[319266558,1710630649368,-500.0,0.00018626,2]
[319266560,1710630649377,-500.0,0.00018626,2]
[319266562,1710630649386,-500.0,0.00018626,2]
[319266564,1710630649397,-441.52031356,0.00018626,2]
[319266566,1710630649406,-500.0,0.00018626,2]
[319266568,1710630649415,-637.94,0.00018626,2]
[319266570,1710630649423,-500.0,0.00018626,2]
[319266572,1710630649432,-500.0,0.00018626,2]
[319266574,1710630649441,-500.0,0.00018626,2]
[319266576,1710630649450,-500.0,0.00018626,2]
[319266578,1710630649459,-500.0,0.00018626,2]
[319266580,1710630649468,-500.0,0.00018626,2]
[319266582,1710630649477,-500.0,0.00018626,2]
[319266584,1710630649486,-500.0,0.00018626,2]
[319266586,1710630649495,-153.78,0.00018626,2]
[319266588,1710630649504,-500.0,0.00018626,2]
[319266590,1710630649513,-500.0,0.00018626,2]
[319266592,1710630649523,-592.43266598,0.00018626,2]
[319266594,1710630649536,-250.93133992,0.00018627,2]
[319266596,1710630649546,-334.3497435,0.00018627,2]
[319266598,1710630649556,-1106.00926196,0.00018627,2]
[319266600,1710630649566,-414.02815094,0.00018627,2]
[319266602,1710630649575,-197.4103245,0.00018627,2]
[319266604,1710630649584,-248.55140072,0.00018627,2]
[319266606,1710630649594,-385.15908018,0.00018627,2]
[319266608,1710630649602,-162.60266903,0.00018627,2]
[319266610,1710630649612,-826.89,0.00018627,2]
[319266612,1710630649621,-826.89,0.00018627,2]
[319266614,1710630649629,-131.15008486,0.00018627,2]
[319266617,1710630649641,-695.73991514,0.00018627,2]
[319266619,1710630649650,-826.89,0.00018627,2]
[319266621,1710630649659,-826.93413384,0.00018627,2]
[319266623,1710630649668,-3493.87,0.00018627,2]
[319266625,1710630649677,-3493.87,0.00018627,2]
[319266627,1710630649687,-3493.87,0.00018627,2]
[319266629,1710630649696,-3493.87,0.00018627,2]
[319266631,1710630649705,-3494.03916578,0.00018627,2]
[319266632,1710630649714,-1137.94,0.00018627,2]
[319266635,1710630649723,-1137.94,0.00018627,2]
[319266636,1710630649732,-1137.94,0.00018627,2]
[319266638,1710630649742,-1137.94,0.00018627,2]
[319266641,1710630649751,-1138.08103689,0.00018627,2]
[319266643,1710630649760,-155.13186208,0.00018627,2]
[319266644,1710630649769,-300.39097585,0.00018627,2]
[319266646,1710630649781,-160.13422912,0.00018627,2]
[319266648,1710630649791,-2944.76,0.00018627,2]
[319266650,1710630649801,-2944.76,0.00018627,2]
[319266653,1710630649810,-2944.76,0.00018627,2]
[319266654,1710630649819,-2944.76,0.00018627,2]
[319266657,1710630649832,-2944.76,0.00018627,2]
[319266659,1710630649842,-2944.76,0.00018627,2]
[319266661,1710630649852,-2944.76,0.00018627,2]
[319266663,1710630649861,-2944.76,0.00018627,2]
[319266664,1710630649869,-2944.94612525,0.00018627,2]
[319266666,1710630649879,-1002.8,0.00018627,2]
[319266669,1710630649888,-1002.8,0.00018627,2]
[319266670,1710630649897,-1002.8,0.00018627,2]
[319266672,1710630649907,-1002.8,0.00018627,2]
[319266674,1710630649916,-1002.8,0.00018627,2]
[319266676,1710630649925,-1002.8,0.00018627,2]
[319266678,1710630649933,-1002.89951662,0.00018627,2]
[319266680,1710630649942,-555.13,0.00018627,2]
[319266682,1710630649951,-555.13,0.00018627,2]
[319266684,1710630649960,-555.13,0.00018627,2]
[319266686,1710630649969,-555.13,0.00018627,2]
[319266688,1710630649978,-555.13,0.00018627,2]
[319266690,1710630649987,-555.13,0.00018627,2]
[319266692,1710630649997,-555.13,0.00018627,2]
[319266694,1710630650006,-205.04361921,0.00018627,2]
[319266696,1710630650015,-524.29941204,0.00018627,2]
[319266698,1710630650027,-533.86112351,0.00018627,2]
[319266701,1710630650037,-3144.75019936,0.00018627,2]
[319266703,1710630650046,-245.98065434,0.00018627,2]
[319266705,1710630650058,-497.55195,0.00018627,2]
[319266707,1710630650067,-500.0,0.00018627,2]
[319266709,1710630650076,-500.0,0.00018627,2]
[319266711,1710630650088,-500.0,0.00018627,2]
[319266713,1710630650097,-500.0,0.00018627,2]
[319266715,1710630650106,-500.0,0.00018627,2]
[319266716,1710630650117,-500.0,0.00018627,2]
[319266717,1710630650125,-500.0,0.00018627,2]
[319266718,1710630650134,-500.0,0.00018627,2]
[319266719,1710630650143,-500.0,0.00018627,2]
[319266720,1710630650152,-500.0,0.00018627,2]
[319266722,1710630650161,-233.65596588,0.00018627,2]
[319266724,1710630650170,-201.29139694,0.00018627,2]
[319266725,1710630650180,-306.72520796,0.00018627,2]
[319266728,1710630650189,-1667.75,0.00018627,2]
[319266730,1710630650199,-1667.75,0.00018627,2]
[319266732,1710630650208,-1667.75,0.00018627,2]
[319266734,1710630650217,-1667.75,0.00018627,2]
[319266736,1710630650226,-1667.75,0.00018627,2]
[319266737,1710630650235,-1667.75,0.00018627,2]
[319266740,1710630650245,-1667.75,0.00018627,2]
[319266742,1710630650254,-1667.75,0.00018627,2]
[319266743,1710630650263,-500.0,0.00018627,2]
[319266746,1710630650273,-500.0,0.00018627,2]
[319266748,1710630650288,-500.0,0.00018627,2]
[319266750,1710630650298,-355.32,0.00018627,2]
[319266752,1710630650308,-627.45152945,0.00018627,2]
[319266753,1710630650319,-500.0,0.00018627,2]
[319266756,1710630650329,-500.0,0.00018627,2]
[319266757,1710630650339,-500.0,0.00018627,2]
[319266758,1710630650350,-1362.56737124,0.00018627,2]
[319266760,1710630650360,-967.30817597,0.00018627,2]
[319266762,1710630650369,-500.0,0.00018627,2]
[319266764,1710630650379,-500.0,0.00018627,2]
[319266766,1710630650389,-500.0,0.00018627,2]
[319266769,1710630650399,-553.38053247,0.00018627,2]
[319266771,1710630650408,-478.6877639,0.00018627,2]
[319266773,1710630650418,-155.08219356,0.00018628,2]
[319266774,1710630650427,-179.15835555,0.00018628,2]
[319266776,1710630650436,-311.42954669,0.00018628,2]
[319266778,1710630650445,-372.52735655,0.00018628,2]
[319266780,1710630650455,-155.686923,0.00018628,2]
[319266782,1710630650465,-1605.73159724,0.00018628,2]
[319266784,1710630650475,-350.67370948,0.00018628,2]
[319266786,1710630650486,-15712.41904849,0.00018628,5]
[319266788,1710630650497,-500.0,0.00018628,2]
[319266790,1710630650508,-500.0,0.00018628,2]
[319266792,1710630650518,-177.89838851,0.00018628,2]
[319266794,1710630650532,-500.0,0.00018628,2]
[319266796,1710630650543,-500.0,0.00018628,2]
[319266798,1710630650555,-500.0,0.00018628,2]
[319266800,1710630650565,-193.44,0.00018628,2]
[319266802,1710630650575,-500.0,0.00018628,2]
[319266805,1710630650586,-171.54331571,0.00018628,2]
[319266806,1710630650596,-500.0,0.00018628,2]
[319266809,1710630650607,-500.0,0.00018628,2]
[319266811,1710630650617,-504.0926397,0.00018628,2]
[319266813,1710630650626,-500.0,0.00018628,2]
[319266815,1710630650636,-500.0,0.00018628,2]
[319266817,1710630650645,-500.0,0.00018628,2]
[319266819,1710630650655,-500.0,0.00018628,2]
[319266821,1710630650666,-500.0,0.00018628,2]
[319266823,1710630650676,-503.78678709,0.00018628,2]
[319266825,1710630650686,-433.96,0.00018628,2]
[319266827,1710630650695,-500.0,0.00018628,2]
[319266829,1710630650705,-500.0,0.00018628,2]
[319266831,1710630650715,-500.0,0.00018628,2]
[319266832,1710630650725,-500.0,0.00018628,2]
[319266834,1710630650735,-500.0,0.00018628,2]
[319266836,1710630650745,-500.0,0.00018628,2]
[319266838,1710630650760,-500.0,0.00018628,2]
[319266840,1710630650771,-500.0,0.00018628,2]
[319266842,1710630650786,-500.0,0.00018628,2]
[319266844,1710630650796,-584.22710179,0.00018628,2]
[319266846,1710630650806,-500.0,0.00018628,2]
[319266848,1710630650816,-208.43582616,0.00018628,2]
[319266850,1710630650828,-199.59737851,0.00018628,2]
[319266852,1710630650838,-237.81900663,0.00018628,2]
[319266854,1710630650848,-599.75180444,0.00018628,2]
[319266856,1710630650858,-155.5463427,0.00018628,2]
[319266858,1710630650868,-169.29071363,0.00018628,2]
[319266860,1710630650878,-500.0,0.00018628,2]
[319266862,1710630650888,-500.0,0.00018628,2]
[319266864,1710630650897,-500.0,0.00018628,2]
[319266865,1710630650907,-500.36843595,0.00018628,2]
[319266868,1710630650918,-155.40701219,0.00018628,2]
[319266870,1710630650928,-155.57735278,0.00018628,2]
[319266872,1710630650937,-500.0,0.00018628,2]
[319266874,1710630650947,-500.0,0.00018628,2]
[319266876,1710630650956,-500.0,0.00018628,2]
[319266877,1710630650965,-500.0,0.00018628,2]
[319266879,1710630650975,-500.0,0.00018628,2]
[319266881,1710630650985,-155.87990677,0.00018628,2]
[319266883,1710630650994,-500.0,0.00018628,2]
[319266885,1710630651004,-500.0,0.00018628,2]
[319266888,1710630651013,-500.0,0.00018628,2]
[319266890,1710630651023,-500.0,0.00018628,2]
[319266892,1710630651037,-500.0,0.00018628,2]
[319266894,1710630651047,-500.0,0.00018628,2]
[319266896,1710630651056,-500.0,0.00018628,2]
[319266898,1710630651067,-500.0,0.00018628,2]
[319266900,1710630651077,-500.0,0.00018628,2]
[319266902,1710630651086,-500.0,0.00018628,2]
[319266904,1710630651096,-502.50733847,0.00018628,2]
[319266906,1710630651105,-536.06399119,0.00018628,2]
[319266908,1710630651116,-500.0,0.00018628,2]
[319266910,1710630651125,-500.0,0.00018628,2]
[319266912,1710630651135,-500.0,0.00018628,2]
[319266914,1710630651144,-1698.37,0.00018628,2]
[319266916,1710630651154,-1698.37,0.00018628,2]
[319266919,1710630651173,-1698.37,0.00018628,2]
[319266921,1710630651183,-1698.37,0.00018628,2]
[319266923,1710630651192,-1698.37,0.00018628,2]
[319266925,1710630651202,-500.0,0.00018628,2]
[319266927,1710630651211,-500.0,0.00018628,2]
[319266929,1710630651221,-791.78,0.00018628,2]
[319266931,1710630651230,-791.78,0.00018628,2]
[319266933,1710630651239,-791.78,0.00018628,2]
[319266935,1710630651248,-791.78,0.00018628,2]
[319266936,1710630651262,-791.78,0.00018628,2]
[319266938,1710630651273,-791.78,0.00018628,2]
[319266949,1710630651379,-791.78,0.00018628,2]
[319266951,1710630651390,-500.0,0.00018628,2]
[319266953,1710630651400,-500.0,0.00018628,2]
[319266955,1710630651411,-609.35561256,0.00018628,2]
[319266957,1710630651420,-500.0,0.00018628,2]
[319266959,1710630651430,-645.15374119,0.00018628,2]
[319266961,1710630651440,-618.34300887,0.00018628,2]
[319266963,1710630651449,-500.0,0.00018628,2]
[319266965,1710630651459,-500.0,0.00018628,2]
[319266967,1710630651468,-500.0,0.00018628,2]
[319266969,1710630651478,-500.0,0.00018628,2]
[319266971,1710630651488,-500.0,0.00018628,2]
[319266973,1710630651498,-312.5457991,0.00018628,2]
[319266975,1710630651507,-537.74,0.00018628,2]
[319266977,1710630651517,-537.74,0.00018628,2]
[319266979,1710630651530,-537.74,0.00018628,2]
[319266981,1710630651540,-537.74,0.00018628,2]
[319266983,1710630651549,-499.58066065,0.00018628,2]
[319266985,1710630651559,-1387.36,0.00018628,2]
[319266987,1710630651570,-1387.36,0.00018628,2]
[319266989,1710630651580,-1387.36,0.00018628,2]
[319266991,1710630651590,-1387.36,0.00018628,2]
[319266993,1710630651603,-500.0,0.00018628,2]
[319266995,1710630651613,-500.0,0.00018628,2]
[319266997,1710630651623,-500.0,0.00018628,2]
[319266999,1710630651633,-500.0,0.00018628,2]
[319267001,1710630651643,-500.0,0.00018628,2]
[319267003,1710630651652,-500.0,0.00018628,2]
[319267005,1710630651662,-500.0,0.00018628,2]
[319267007,1710630651671,-500.0,0.00018628,2]
[319267009,1710630651681,-45833.33,0.00018628,2]
[319267011,1710630651690,-45833.33,0.00018628,2]
[319267014,1710630651700,-45833.33,0.00018628,2]
[319267016,1710630651710,-45833.33,0.00018628,2]
[319267018,1710630651720,-45833.33,0.00018628,2]
[319267020,1710630651729,-500.51024824,0.00018628,2]
[319267022,1710630651738,-500.0,0.00018628,2]
[319267024,1710630651748,-500.32654996,0.00018628,2]
[319267026,1710630651757,-500.5150128,0.00018628,2]
[319267028,1710630651768,-595.58,0.00018628,2]
[319267029,1710630651780,-583.65364026,0.00018628,2]
[319267032,1710630651794,-500.24942615,0.00018628,2]
[319267034,1710630651803,-500.0,0.00018628,2]
[319267036,1710630651812,-163.65635167,0.00018628,2]
[319267037,1710630651822,-500.0,0.00018628,2]
[319267040,1710630651834,-315.06418241,0.00018628,2]
[319267042,1710630651843,-555.13,0.00018628,2]
[319267044,1710630651853,-555.13,0.00018628,2]
[319267046,1710630651863,-555.13,0.00018628,2]
[319267048,1710630651873,-555.13,0.00018628,2]
[319267050,1710630651882,-555.13,0.00018628,2]
[319267051,1710630651891,-555.13,0.00018628,2]
[319267053,1710630651901,-555.13,0.00018628,2]
[319267056,1710630651910,-555.13,0.00018628,2]
[319267058,1710630651920,-555.13,0.00018628,2]
[319267060,1710630651929,-555.25,0.00018628,2]
[319267061,1710630651938,-500.0,0.00018628,2]
[319267063,1710630651947,-487.74,0.00018628,2]
[319267065,1710630651956,-1667.75,0.00018628,2]
[319267067,1710630651965,-1667.75,0.00018628,2]
[319267069,1710630651975,-1667.75,0.00018628,2]
[319267071,1710630651984,-1667.75,0.00018628,2]
[319267073,1710630651993,-1667.75,0.00018628,2]
[319267075,1710630652002,-1667.75,0.00018628,2]
[319267077,1710630652011,-1667.75,0.00018628,2]
[319267079,1710630652020,-1667.75,0.00018628,2]
[319267081,1710630652032,-1667.75,0.00018628,2]
[319267083,1710630652041,-1667.75,0.00018628,2]
[319267085,1710630652050,-1667.75,0.00018628,2]
[319267087,1710630652059,-1667.81807674,0.00018628,2]
[319267089,1710630652068,-151.0,0.00018628,2]
[319267091,1710630652078,-151.0,0.00018628,2]
[319267093,1710630652087,-356.17346748,0.00018629,2]
[319267095,1710630652109,-500.77895475,0.00018629,2]
[319267097,1710630652119,-500.0,0.00018629,2]
[319267099,1710630652128,-500.0,0.00018629,2]
[319267101,1710630652137,-500.0,0.00018629,2]
[319267103,1710630652146,-500.0,0.00018629,2]
[319267105,1710630652155,-193.44,0.00018629,2]
[319267107,1710630652164,-500.0,0.00018629,2]
[319267109,1710630652174,-500.0,0.00018629,2]
[319267111,1710630652183,-500.0,0.00018629,2]
[319267113,1710630652192,-500.0,0.00018629,2]
[319267115,1710630652201,-500.0,0.00018629,2]
[319267117,1710630652211,-500.0,0.00018629,2]
[319267119,1710630652219,-500.0,0.00018629,2]
[319267121,1710630652228,-500.0,0.00018629,2]
[319267123,1710630652237,-500.0,0.00018629,2]
[319267125,1710630652246,-500.0,0.00018629,2]
[319267127,1710630652255,-500.0,0.00018629,2]
[319267129,1710630652264,-500.0,0.00018629,2]
[319267131,1710630652273,-500.0,0.00018629,2]
[319267133,1710630652285,-500.0,0.00018629,2]
[319267135,1710630652294,-500.0,0.00018629,2]
[319267137,1710630652303,-500.0,0.00018629,2]
[319267139,1710630652312,-193.44,0.00018629,2]
[319267141,1710630652321,-502.36460615,0.00018629,2]
[319267143,1710630652330,-500.0,0.00018629,2]
[319267145,1710630652340,-500.0,0.00018629,2]
[319267147,1710630652349,-500.0,0.00018629,2]
[319267149,1710630652358,-500.0,0.00018629,2]
[319267151,1710630652367,-500.0,0.00018629,2]
[319267153,1710630652376,-515.67804934,0.00018629,2]
[319267155,1710630652385,-500.0,0.00018629,2]
[319267157,1710630652394,-500.0,0.00018629,2]
[319267159,1710630652403,-500.0,0.00018629,2]
[319267161,1710630652411,-500.0,0.00018629,2]
[319267163,1710630652421,-492.47358261,0.00018629,2]
[319267164,1710630652430,-500.0,0.00018629,2]
[319267166,1710630652440,-500.0,0.00018629,2]
[319267169,1710630652449,-500.0,0.00018629,2]
[319267171,1710630652458,-500.0,0.00018629,2]
[319267173,1710630652467,-500.0,0.00018629,2]
[319267174,1710630652477,-500.0,0.00018629,2]
[319267176,1710630652486,-187.4542009,0.00018629,2]
[319267178,1710630652495,-500.0,0.00018629,2]
[319267180,1710630652504,-500.0,0.00018629,2]
[319267182,1710630652513,-500.0,0.00018629,2]
[319267184,1710630652522,-500.0,0.00018629,2]
[319267186,1710630652534,-500.0,0.00018629,2]
[319267188,1710630652543,-350.9044804,0.00018629,2]
[319267190,1710630652552,-500.0,0.00018629,2]
[319267192,1710630652561,-607.74,0.00018629,2]
[319267194,1710630652570,-500.0,0.00018629,2]
[319267196,1710630652580,-500.56884578,0.00018629,2]
[319267198,1710630652589,-509.08617048,0.00018629,2]
[319267200,1710630652600,-547.75457667,0.00018629,2]
[319267202,1710630652609,-500.0,0.00018629,2]
[319267204,1710630652618,-500.37552105,0.00018629,2]
[319267206,1710630652627,-500.0,0.00018629,2]
[319267208,1710630652636,-596.72,0.00018629,2]
[319267210,1710630652645,-500.0,0.00018629,2]
[319267213,1710630652655,-596.72,0.00018629,2]
[319267214,1710630652664,-500.0,0.00018629,2]
[319267217,1710630652673,-500.0,0.00018629,2]
[319267218,1710630652681,-500.0,0.00018629,2]
[319267220,1710630652689,-500.0,0.00018629,2]
[319267222,1710630652696,-500.0,0.00018629,2]
[319267224,1710630652705,-500.0,0.00018629,2]
[319267226,1710630652715,-500.0,0.00018629,2]
[319267228,1710630652723,-251.42385898,0.00018629,2]
[319267229,1710630652730,-500.0,0.00018629,2]
[319267231,1710630652738,-273.6131598,0.00018629,2]
[319267233,1710630652747,-189.49497666,0.00018629,2]
[319267235,1710630652755,-500.0,0.00018629,2]
[319267237,1710630652764,-500.0,0.00018629,2]
[319267239,1710630652773,-500.0,0.00018629,2]
[319267242,1710630652790,-500.0,0.00018629,2]
[319267243,1710630652800,-500.0,0.00018629,2]
[319267246,1710630652813,-500.0,0.00018629,2]
[319267248,1710630652824,-500.0,0.00018629,2]
[319267250,1710630652833,-501.57047566,0.00018629,2]
[319267252,1710630652843,-500.0,0.00018629,2]
[319267254,1710630652853,-500.0,0.00018629,2]
[319267256,1710630652863,-500.0,0.00018629,2]
[319267258,1710630652872,-500.0,0.00018629,2]
[319267260,1710630652882,-500.0,0.00018629,2]
[319267262,1710630652891,-501.25773633,0.00018629,2]
[319267263,1710630652901,-500.0,0.00018629,2]
[319267266,1710630652911,-500.0,0.00018629,2]
[319267267,1710630652920,-500.0,0.00018629,2]
[319267270,1710630652930,-308.00001,0.00018629,2]
[319267272,1710630652938,-500.0,0.00018629,2]
[319267274,1710630652947,-500.0,0.00018629,2]
[319267276,1710630652956,-500.0,0.00018629,2]
[319267278,1710630652966,-500.0,0.00018629,2]
[319267279,1710630652974,-500.0,0.00018629,2]
[319267281,1710630652982,-500.0,0.00018629,2]
[319267283,1710630652992,-500.0,0.00018629,2]
[319267285,1710630653002,-500.0,0.00018629,2]
[319267287,1710630653011,-500.0,0.00018629,2]
[319267289,1710630653020,-500.0,0.00018629,2]
[319267291,1710630653035,-500.0,0.00018629,2]
[319267293,1710630653043,-500.0,0.00018629,2]
[319267295,1710630653053,-500.0,0.00018629,2]
[319267297,1710630653062,-500.0,0.00018629,2]
[319267299,1710630653072,-500.0,0.00018629,2]
[319267301,1710630653081,-500.0,0.00018629,2]
[319267303,1710630653090,-500.0,0.00018629,2]
[319267305,1710630653099,-500.0,0.00018629,2]
[319267307,1710630653109,-500.0,0.00018629,2]
[319267309,1710630653118,-500.0,0.00018629,2]
[319267311,1710630653129,-205.20257073,0.00018629,2]
[319267313,1710630653138,-500.0,0.00018629,2]
[319267315,1710630653148,-500.0,0.00018629,2]
[319267317,1710630653157,-2003.8,0.00018629,2]
[319267319,1710630653167,-2003.8,0.00018629,2]
[319267321,1710630653176,-2003.8,0.00018629,2]
[319267323,1710630653185,-2003.8,0.00018629,2]
[319267325,1710630653195,-2003.8,0.00018629,2]
[319267327,1710630653204,-2003.8,0.00018629,2]
[319267329,1710630653214,-2003.8,0.00018629,2]
[319267331,1710630653223,-2003.8,0.00018629,2]
[319267333,1710630653232,-2003.8,0.00018629,2]
[319267335,1710630653241,-2003.8,0.00018629,2]
[319267337,1710630653250,-2003.8,0.00018629,2]
[319267339,1710630653259,-2003.8,0.00018629,2]
[319267341,1710630653268,-2003.8,0.00018629,2]
[319267343,1710630653280,-2003.8,0.00018629,2]
[319267345,1710630653289,-2003.8,0.00018629,2]
[319267347,1710630653299,-2003.8,0.00018629,2]
[319267349,1710630653308,-2003.8,0.00018629,2]
[319267351,1710630653317,-2003.8,0.00018629,2]
[319267353,1710630653326,-2003.8,0.00018629,2]
[319267355,1710630653335,-2003.8,0.00018629,2]
[319267357,1710630653345,-2003.8,0.00018629,2]
[319267359,1710630653354,-2003.8,0.00018629,2]
[319267361,1710630653363,-2003.8,0.00018629,2]
[319267362,1710630653373,-500.0,0.00018629,2]
[319267364,1710630653382,-500.0,0.00018629,2]
[319267366,1710630653391,-500.0,0.00018629,2]